bitfinex/quotes_ETHUSD_20240614
["timestamp","ask_amount","ask_price","bid_price","bid_amount"]
[1718366016282,0.698,3518.7,3518.0,2.4412]
[1718366016462,0.698,3518.7,3518.6,0.05352465]
[1718366016664,0.698,3518.7,3518.0,2.4412]
[1718366016863,0.698,3518.7,3518.6,0.05352465]
[1718366017050,0.698,3518.7,3518.0,2.4412]
[1718366017257,0.698,3518.7,3518.6,0.05352465]
[1718366017451,0.698,3518.7,3518.0,2.4412]
[1718366017756,0.698,3518.7,3518.6,0.05352465]
[1718366017981,0.698,3518.7,3518.0,2.4412]
[1718366018456,0.698,3518.7,3518.1,0.05423638]
[1718366020581,0.698,3518.5,3518.1,0.05423638]
[1718366021989,0.698,3518.3,3518.1,0.05423638]
[1718366022303,2.3273,3518.8,3518.1,0.05423638]
[1718366022304,0.698,3518.4,3518.1,0.05423638]
[1718366035206,2.3273,3518.8,3518.1,0.05423638]
[1718366035410,0.698,3518.6,3518.1,0.05423638]
[1718366051256,2.3198,3518.9,3518.1,0.05423638]
[1718366051523,0.698,3518.6,3518.1,0.05423638]
[1718366054641,0.698,3518.4,3518.1,0.05423638]
[1718366058863,0.698,3518.5,3518.1,0.05423638]
[1718366065098,0.698,3518.3,3518.1,0.05423638]
[1718366066648,0.698,3518.3,3518.1,0.03842113]
[1718366077999,0.31174,3518.2,3517.6,2.4282]
[1718366078139,0.698,3517.7,3517.6,2.4282]
[1718366080638,0.698,3517.7,3517.0,2.2691]
[1718366084042,0.698,3517.8,3517.0,2.2691]
[1718366084645,0.698,3517.8,3517.1,0.03060692]
[1718366084850,0.698,3517.8,3517.1,0.50097761]
[1718366087485,0.698,3517.8,3517.1,0.03060692]
[1718366102178,3.0593,3518.0,3517.2,2.2564]
[1718366102378,3.0593,3518.0,3517.2,2.28711946]
[1718366104394,2.73855101,3518.3,3517.3,0.05685767]
[1718366104613,0.698,3518.1,3517.4,2.3923]
[1718366104932,0.698,3518.1,3517.4,2.42546626]
[1718366108040,2.4398,3518.5,3517.6,2.4614]
[1718366108250,0.698,3518.4,3517.6,2.4614]
[1718366108454,0.698,3518.4,3517.7,0.0358748]
[1718366109296,0.698,3518.4,3517.8,2.4504]
[1718366109811,0.698,3518.4,3517.9,0.03569358]
[1718366110704,3.44481327,3518.8,3517.9,0.03569358]
[1718366110901,1.14281327,3518.8,3518.0,2.4838]
[1718366111235,0.698,3519.0,3518.2,2.4838]
[1718366111598,0.698,3519.0,3518.3,0.0482835]
[1718366113213,0.698,3519.0,3518.2,2.4838]
[1718366113433,0.698,3519.0,3518.4,0.04280795]
[1718366113612,0.698,3519.0,3518.2,2.4838]
[1718366113934,0.698,3519.0,3518.5,0.04269725]
[1718366114147,0.698,3519.0,3518.2,2.4838]
[1718366114310,0.698,3519.0,3518.6,0.04258655]
[1718366114517,0.99402,3519.0,3518.2,2.4838]
[1718366114711,0.698,3519.0,3518.3,0.04291866]
[1718366115442,0.698,3519.0,3518.3,0.05683994]
[1718366115641,0.698,3519.0,3518.4,2.3891]
[1718366115829,0.698,3519.0,3518.4,2.43725895]
[1718366117763,3.0,3519.3,3518.4,2.43725895]
[1718366117918,2.262,3519.4,3518.4,2.68098485]
[1718366118119,0.698,3519.1,3518.4,2.68098485]
[1718366118339,3.44475982,3519.5,3518.5,0.05683703]
[1718366118530,3.44475982,3519.5,3518.5,2.3799]
[1718366118730,0.698,3519.2,3518.6,0.04790987]
[1718366120465,0.698,3519.0,3518.6,0.04790987]
[1718366123013,3.44475982,3519.5,3518.6,0.04790987]
[1718366123296,0.698,3519.1,3518.6,0.04790987]
[1718366126472,0.58224598,3519.4,3518.6,0.04790987]
[1718366126718,0.698,3518.9,3518.6,0.04790987]
[1718366127422,0.698,3518.9,3518.2,2.3563]
[1718366127709,0.698,3518.9,3518.7,0.04712812]
[1718366128024,0.698,3518.9,3518.8,0.0470036]
[1718366128323,0.698,3518.9,3518.2,2.3563]
[1718366128619,0.698,3518.9,3518.2,2.83233]
[1718366128819,0.698,3518.9,3518.3,0.04762629]
[1718366130206,0.698,3518.7,3518.3,0.04762629]
[1718366133010,2.4083,3518.8,3518.3,0.04762629]
[1718366133011,0.698,3518.4,3518.3,0.04762629]
[1718366133215,0.698,3518.4,3517.7,2.3634]
[1718366133383,0.24083,3518.7,3517.7,2.3634]
[1718366133384,0.698,3518.2,3517.7,2.3634]
[1718366143761,2.2831,3518.4,3517.1,2.3002]
[1718366144061,0.698,3517.9,3517.1,2.3002]
[1718366144200,0.698,3517.9,3517.1,2.77062]
[1718366144405,0.698,3517.9,3517.2,0.03969353]
[1718366147646,0.698,3517.7,3517.2,0.03969353]
[1718366160442,0.698,3517.5,3517.2,0.03969353]
[1718366161026,0.698,3517.5,3517.2,0.02845093]
[1718366161459,0.698,3517.5,3517.1,2.3002]
[1718366161708,0.698,3517.5,3517.3,0.02845093]
[1718366161980,0.698,3517.5,3517.2,0.02852215]
[1718366165338,0.698,3517.5,3517.1,2.3002]
[1718366165669,0.698,3517.5,3517.2,0.02862518]
[1718366166156,2.3061,3518.0,3517.2,0.02862518]
[1718366166486,0.698,3517.6,3517.1,2.3002]
[1718366166658,0.698,3517.6,3517.3,0.02855397]
[1718366166897,0.698,3517.6,3517.1,2.3002]
[1718366168586,0.23061,3517.9,3517.1,2.3002]
[1718366168787,3.0,3518.4,3517.1,2.53022]
[1718366168998,1.43344514,3518.4,3517.2,2.51898519]
[1718366169315,0.698,3518.0,3517.2,2.46212712]
[1718366170123,0.698,3517.9,3517.2,2.46212712]
[1718366170412,0.698,3517.9,3517.2,2.77813983]
[1718366186864,0.698,3517.7,3517.2,2.46212712]
[1718366187476,0.698,3517.7,3517.2,0.03082712]
[1718366187625,0.698,3517.5,3517.0,2.4695]
[1718366188059,0.698,3517.5,3517.1,0.02864791]
[1718366188468,2.67171137,3517.9,3517.1,0.02864791]
[1718366188469,0.698,3517.3,3517.1,0.02864791]
[1718366188668,0.698,3517.4,3517.1,0.02864791]
[1718366191682,2.67171137,3517.9,3517.1,0.02864791]
[1718366191887,0.698,3517.5,3517.0,2.4695]
[1718366192088,0.698,3517.5,3517.2,0.02857669]
[1718366192290,0.698,3517.5,3517.0,2.4695]
[1718366192588,0.698,3517.5,3517.3,0.02862668]
[1718366192786,0.698,3517.5,3517.0,2.4695]
[1718366192992,0.698,3517.5,3517.4,0.02855547]
[1718366193165,0.93786163,3517.5,3517.0,2.4695]
[1718366193366,0.698,3517.5,3517.4,0.02855547]
[1718366193689,0.698,3517.5,3517.0,2.4695]
[1718366193847,0.698,3517.5,3517.4,0.02855547]
[1718366194051,0.698,3517.5,3517.0,2.4695]
[1718366194251,0.698,3517.5,3517.4,0.02855547]
[1718366194486,0.698,3517.5,3517.0,2.4695]
[1718366194487,0.93786163,3517.5,3517.0,2.4695]
[1718366194668,0.23986163,3517.5,3517.4,0.02855547]
[1718366194872,0.93786163,3517.5,3517.0,2.4695]
[1718366195072,0.93786163,3517.5,3517.4,0.02855547]
[1718366195277,0.93786163,3517.5,3517.0,2.4695]
[1718366195489,0.93786163,3517.5,3517.4,0.02855547]
[1718366195687,0.93786163,3517.5,3517.0,2.4695]
[1718366195887,2.252,3517.4,3516.5,2.2566]
[1718366196057,0.698,3517.3,3516.6,0.46606]
[1718366196893,0.698,3517.1,3516.5,2.2566]
[1718366198290,0.698,3517.2,3516.5,2.2566]
[1718366198910,0.698,3516.9,3516.5,2.2566]
[1718366200221,0.698,3516.9,3515.7,0.87146452]
[1718366200222,0.698,3516.7,3515.7,0.59339037]
[1718366200425,1.43344514,3516.9,3515.8,2.84048759]
[1718366200426,0.698,3516.4,3515.8,2.84048759]
[1718366200622,0.698,3516.4,3515.8,2.4474]
[1718366201233,0.698,3516.2,3515.8,2.4474]
[1718366202296,2.3722,3516.6,3515.4,2.3277]
[1718366202297,0.698,3516.0,3515.4,2.3277]
[1718366202506,1.43344514,3516.5,3515.9,0.02807065]
[1718366202727,0.698,3516.0,3515.4,2.3277]
[1718366204506,0.38056451,3516.4,3515.5,0.02870457]
[1718366204704,0.698,3516.1,3515.5,0.02870457]
[1718366205531,0.698,3516.1,3515.6,2.3382]
[1718366205732,0.698,3516.1,3515.6,2.36683803]
[1718366209048,0.38056451,3516.4,3515.6,2.36683803]
[1718366209219,0.698,3516.1,3515.6,2.36683803]
[1718366212409,2.4463,3517.1,3515.6,2.36683803]
[1718366212729,2.4463,3517.1,3515.7,2.41058096]
[1718366212730,0.698,3516.5,3515.7,2.41058096]
[1718366212921,0.698,3516.5,3515.9,2.3077]
[1718366213243,0.698,3516.5,3516.0,0.02836345]
[1718366215332,4.43344514,3517.0,3516.0,0.02836345]
[1718366215544,0.698,3516.4,3515.9,2.3077]
[1718366215757,0.698,3516.4,3516.1,0.02821203]
[1718366215958,0.698,3516.4,3515.9,2.3077]
[1718366216152,0.698,3516.4,3516.2,0.02814552]
[1718366216667,0.698,3516.4,3515.9,2.3077]
[1718366217020,0.698,3516.4,3516.0,0.02827855]
[1718366218353,4.41497451,3516.9,3516.0,0.02827855]
[1718366218555,0.698,3516.4,3516.0,0.02827855]
[1718366220746,0.698,3516.2,3516.0,0.02827855]
[1718366221536,2.4644,3516.7,3516.0,0.02827855]
[1718366221745,0.698,3516.2,3516.0,0.02827855]
[1718366223665,5.3752,3517.0,3516.0,0.02827855]
[1718366223820,0.53752,3516.9,3516.0,0.02827855]
[1718366224155,0.698,3516.5,3516.0,0.02827855]
[1718366225038,0.698,3516.3,3516.0,0.02827855]
[1718366225946,0.698,3516.1,3516.0,0.02827855]
[1718366226150,0.698,3516.1,3515.5,2.3027]
[1718366226347,0.698,3516.1,3516.0,0.02827855]
[1718366226548,0.698,3516.1,3515.5,2.3027]
[1718366226777,0.698,3516.1,3516.0,0.02827855]
[1718366226931,0.698,3516.1,3515.5,2.3027]
[1718366227265,0.698,3516.1,3516.0,0.02827855]
[1718366227422,0.698,3516.1,3515.5,2.3027]
[1718366227628,0.698,3516.1,3516.0,0.02827855]
[1718366227829,0.698,3516.1,3515.5,2.3027]
[1718366228029,0.698,3516.1,3516.0,0.02827855]
[1718366228546,0.698,3516.1,3515.5,2.3027]
[1718366228751,0.698,3516.1,3516.0,0.02827855]
[1718366228975,0.698,3516.1,3515.5,2.3027]
[1718366229160,0.698,3516.1,3516.0,0.02827855]
[1718366229357,0.698,3516.1,3515.5,2.3027]
[1718366229555,1.43344514,3516.5,3516.0,0.02827855]
[1718366229762,0.698,3516.1,3515.5,2.2747]
[1718366230159,0.38711451,3516.4,3515.5,2.2747]
[1718366230367,0.698,3516.0,3515.5,2.2747]
[1718366232754,2.4392,3515.9,3515.1,2.4664]
[1718366232993,0.698,3515.8,3515.1,2.4664]
[1718366233895,2.4392,3516.1,3515.1,2.4664]
[1718366234050,0.698,3515.8,3515.1,2.4664]
[1718366234252,2.4657,3515.7,3514.8,4.7186]
[1718366234456,0.698,3515.6,3514.9,0.02915479]
[1718366235283,2.3794,3515.9,3514.9,0.02915479]
[1718366235284,0.698,3515.4,3514.9,0.02915479]
[1718366236900,0.698,3515.4,3515.1,0.09]
[1718366237256,0.698,3515.4,3515.2,0.02818425]
[1718366237858,1.43344514,3515.8,3515.1,0.09]
[1718366238195,0.698,3515.5,3515.2,0.02818425]
[1718366239701,0.698,3515.5,3515.1,0.09]
[1718366239868,0.698,3515.5,3515.3,0.02811771]
[1718366240065,0.698,3515.5,3515.1,0.09]
[1718366240271,0.698,3515.5,3515.2,0.02818425]
[1718366240599,0.698,3515.5,3515.1,0.09]
[1718366240600,0.698,3515.3,3515.1,0.09]
[1718366240813,0.44163451,3515.2,3515.1,0.09]
[1718366249220,0.698,3515.3,3515.1,0.09]
[1718366249600,0.698,3515.3,3515.2,0.02836526]
[1718366257052,0.698,3515.4,3515.2,0.02836526]
[1718366265254,2.2926,3515.6,3515.2,0.02836526]
[1718366265460,0.698,3515.5,3515.2,0.02836526]
[1718366265662,0.25765904,3515.4,3515.2,0.02836526]
[1718366266562,0.698,3515.6,3515.2,0.02836526]
[1718366271233,0.698,3515.4,3515.2,0.02836526]
[1718366272544,2.13144514,3515.4,3515.2,0.02836526]
[1718366272940,1.43344514,3515.3,3515.2,0.02836526]
[1718366273146,1.89217965,3515.3,3515.2,0.02836526]
[1718366276659,4.72607965,3515.3,3515.2,0.02836526]
[1718366276959,4.72607965,3515.3,3515.1,0.09]
[1718366277280,0.698,3515.2,3515.1,0.09]
[1718366277501,2.13144514,3515.2,3515.1,0.09]
[1718366277691,2.67385311,3515.2,3515.1,0.09]
[1718366279445,3.22385311,3515.2,3515.1,0.09]
[1718366281237,5.71045311,3515.2,3515.1,0.09]
[1718366281438,8.71045311,3515.2,3515.1,0.09]
[1718366281641,9.20247908,3515.2,3515.1,0.09]
[1718366282046,8.50447908,3515.2,3515.1,0.09]
[1718366282247,9.20247908,3515.2,3515.1,0.09]
[1718366283494,9.20253601,3515.2,3515.1,0.09]
[1718366284742,9.202541,3515.2,3515.1,0.09]
[1718366286554,8.504541,3515.2,3515.1,0.09]
[1718366287031,8.504541,3515.2,3514.0,2.4017]
[1718366287032,9.202541,3515.2,3514.0,2.3497]
[1718366287294,4.43344514,3515.1,3514.1,0.93297]
[1718366287446,3.0,3515.1,3514.3,0.698]
[1718366287786,0.69494079,3515.7,3514.3,0.698]
[1718366287787,0.698,3515.3,3514.3,0.698]
[1718366287981,0.698,3515.0,3513.4,2.30139037]
[1718366288284,2.13144514,3515.0,3514.4,0.0283926]
[1718366288581,3.0,3515.2,3513.9,0.698]
[1718366288582,0.698,3514.8,3513.9,0.698]
[1718366288880,0.698,3514.6,3513.5,0.698]
[1718366289060,1.43344514,3514.5,3513.5,0.698]
[1718366289258,1.248,3514.4,3513.6,0.02891685]
[1718366289569,1.43344514,3514.3,3513.5,0.698]
[1718366289768,1.43344514,3514.3,3513.7,0.02885025]
[1718366289971,1.43344514,3514.3,3513.8,2.4151]
[1718366290363,1.43344514,3514.3,3513.9,0.02871705]
[1718366291384,1.40544514,3514.3,3513.9,0.02871705]
[1718366291551,1.26344514,3514.3,3513.9,0.02871705]
[1718366293353,0.698,3514.6,3513.9,0.02871705]
[1718366293591,2.13144514,3514.6,3513.9,0.02871705]
[1718366293797,2.13144514,3514.6,3513.8,2.4151]
[1718366294089,2.13144514,3514.6,3513.9,2.385]
[1718366294602,2.13144514,3514.6,3514.0,2.41605045]
[1718366296905,2.4337,3515.0,3514.0,2.41605045]
[1718366297118,1.83359979,3515.7,3514.0,2.41605045]
[1718366297119,1.43344514,3514.9,3514.0,2.6576555]
[1718366297427,0.698,3514.8,3514.0,2.62900505]
[1718366297573,0.698,3514.8,3514.1,0.02858386]
[1718366297775,0.698,3514.8,3514.2,2.3828]
[1718366298006,0.698,3514.8,3514.3,0.0284507]
[1718366298344,0.698,3514.8,3514.2,2.3828]
[1718366298529,0.698,3514.8,3514.4,0.02838412]
[1718366298690,0.698,3514.8,3514.3,0.0284507]
[1718366298879,0.698,3514.8,3514.5,0.02831754]
[1718366299078,0.698,3514.8,3514.2,2.3828]
[1718366299079,0.698,3514.8,3514.4,0.02842088]
[1718366299286,5.2732,3515.2,3514.6,0.02828774]
[1718366299487,0.698,3514.9,3514.5,0.02835431]
[1718366299696,0.698,3514.9,3514.2,2.3828]
[1718366300422,1.98344514,3515.1,3514.2,2.3828]
[1718366300621,2.68144514,3515.1,3514.2,2.3828]
[1718366301479,0.69494079,3515.7,3514.7,2.4473]
[1718366301713,1.43344514,3515.6,3514.7,2.4473]
[1718366301878,1.43344514,3515.6,3514.8,0.02815461]
[1718366302313,1.43344514,3515.6,3514.9,2.2532]
[1718366302647,1.43344514,3515.6,3515.0,0.02802149]
[1718366302846,0.33183904,3515.5,3515.0,0.02802149]
[1718366303365,4.39294079,3515.7,3514.2,0.30808]
[1718366303366,0.69494079,3515.7,3515.1,2.2682]
[1718366303867,0.69494079,3515.7,3515.2,0.02788839]
[1718366314148,0.69494079,3515.7,3515.2,0.72588839]
[1718366314782,0.69494079,3515.7,3515.3,2.4708]
[1718366315292,0.69494079,3515.7,3515.4,0.02925927]
[1718366315795,0.24979556,3515.7,3515.5,2.3172]
[1718366316292,0.24979556,3515.7,3515.6,0.0291167]
[1718366316851,0.24979556,3515.7,3515.1,3.0204]
[1718366317081,0.24979556,3515.7,3515.2,0.02940186]
[1718366326254,2.60919556,3515.7,3514.9,2.4821]
[1718366326458,0.33071956,3515.6,3515.0,0.02952632]
[1718366327034,0.33071956,3515.6,3515.0,0.72752632]
[1718366327223,0.24979556,3515.7,3515.0,0.72752632]
[1718366329656,0.24979556,3515.7,3515.0,0.02952632]
[1718366333529,1.6832407,3515.7,3515.0,0.02952632]
[1718366333813,0.698,3515.5,3515.0,0.02952632]
[1718366334124,0.698,3515.5,3514.7,2.3769]
[1718366334418,1.17424407,3515.5,3515.1,0.02754787]
[1718366334585,1.17424407,3515.5,3514.7,2.3769]
[1718366334804,1.17424407,3515.5,3515.2,0.02748132]
[1718366335115,1.17424407,3515.5,3515.3,0.02741478]
[1718366335414,0.52386848,3515.4,3514.7,2.3769]
[1718366335615,0.52386848,3515.4,3514.8,0.02774754]
[1718366336370,3.0792,3515.6,3514.8,0.02774754]
[1718366337385,0.698,3515.4,3514.8,0.02774754]
[1718366337693,0.698,3515.4,3514.5,2.3975]
[1718366337694,1.43344514,3515.3,3514.5,2.3975]
[1718366338174,1.43344514,3515.3,3514.6,0.0279937]
[1718366343511,1.43344514,3515.3,3514.7,2.3031]
[1718366343742,1.93970965,3515.3,3514.7,2.3031]
[1718366344033,1.93970965,3515.3,3514.8,0.02791428]
[1718366344223,1.93970965,3515.3,3514.7,2.3031]
[1718366344741,1.93970965,3515.3,3514.8,0.02791428]
[1718366345033,1.93970965,3515.3,3514.7,2.3031]
[1718366345236,1.93970965,3515.3,3514.8,0.02791428]
[1718366345437,0.31877096,3515.2,3514.7,2.3031]
[1718366345607,1.93970965,3515.3,3514.7,2.3031]
[1718366345814,1.93970965,3515.3,3514.8,0.02791428]
[1718366346113,1.93970965,3515.3,3514.7,2.3031]
[1718366346326,1.93970965,3515.3,3514.9,0.02784772]
[1718366346524,0.698,3515.2,3514.8,0.02791428]
[1718366346724,0.26377096,3515.1,3515.0,0.02778116]
[1718366347066,1.43344514,3515.1,3514.9,0.02784772]
[1718366347204,1.43344514,3515.1,3515.0,0.02778116]
[1718366347419,2.13144514,3515.1,3514.5,2.4096]
[1718366347758,2.13144514,3515.1,3514.6,0.02804741]
[1718366347965,0.50658097,3515.0,3514.6,0.02804741]
[1718366348176,0.50658097,3515.0,3514.2,2.3286]
[1718366348463,2.13144514,3514.9,3514.2,2.3286]
[1718366348817,2.13144514,3514.9,3514.3,0.02835456]
[1718366349942,0.698,3514.7,3514.3,0.02835456]
[1718366350148,1.03160261,3514.7,3514.3,0.02835456]
[1718366350321,1.03160261,3514.7,3514.2,2.3286]
[1718366350521,1.03160261,3514.7,3514.4,0.02828798]
[1718366350771,1.03160261,3514.7,3514.3,0.0284422]
[1718366350930,1.03160261,3514.7,3514.5,0.02830905]
[1718366351122,0.24650478,3514.6,3514.4,0.02837563]
[1718366351325,0.24650478,3514.6,3513.9,2.3145]
[1718366351534,0.698,3514.7,3513.9,2.3145]
[1718366353563,2.3703,3514.8,3513.9,2.3145]
[1718366353863,3.0683,3514.8,3513.9,2.3145]
[1718366354459,3.0683,3514.8,3514.0,0.02864196]
[1718366355331,0.50658097,3515.0,3514.3,0.698]
[1718366355667,0.698,3515.2,3514.4,2.4719]
[1718366355833,1.43344514,3515.1,3514.4,2.4719]
[1718366356035,0.698,3515.0,3514.4,2.4719]
[1718366361069,0.698,3514.8,3514.1,2.4165]
[1718366361255,0.698,3514.8,3514.2,0.02861342]
[1718366362935,0.3698,3514.9,3514.2,0.02861342]
[1718366363271,1.43344514,3514.9,3514.2,0.02861342]
[1718366363435,1.43344514,3514.9,3514.1,2.4165]
[1718366363639,1.43344514,3514.9,3514.2,0.02861342]
[1718366363838,1.43344514,3514.9,3514.1,2.4165]
[1718366364064,1.43344514,3514.9,3514.2,0.02861342]
[1718366364370,1.43344514,3514.9,3514.1,2.4165]
[1718366364734,1.43344514,3514.9,3514.2,0.02861342]
[1718366365061,1.43344514,3514.9,3514.1,2.4165]
[1718366365262,1.43344514,3514.9,3514.2,0.02861342]
[1718366365569,1.43344514,3514.9,3514.1,2.4165]
[1718366365974,1.43344514,3514.9,3514.2,0.02861342]
[1718366366338,1.43344514,3514.9,3514.1,2.4165]
[1718366366750,1.43344514,3514.9,3514.2,0.02861342]
[1718366366949,2.22280543,3514.9,3514.2,0.02861342]
[1718366367177,2.22280543,3514.9,3514.1,2.4165]
[1718366367483,2.22280543,3514.9,3514.2,0.02861342]
[1718366367639,2.22280543,3514.9,3514.1,2.4165]
[1718366367843,2.22280543,3514.9,3514.2,0.02861342]
[1718366368158,2.22280543,3514.9,3514.1,2.4165]
[1718366368573,2.22280543,3514.9,3514.2,0.02861342]
[1718366368883,0.34128645,3514.8,3514.2,0.02861342]
[1718366373080,2.22280543,3514.9,3514.2,0.02861342]
[1718366373379,1.43344514,3514.9,3514.2,0.02861342]
[1718366378175,1.43344514,3514.9,3514.4,0.3]
[1718366381971,0.49205197,3515.1,3514.6,0.698]
[1718366382191,0.44531561,3515.4,3514.7,2.4591]
[1718366382411,0.44531561,3515.4,3514.7,2.48748235]
[1718366382565,0.44531561,3515.4,3514.7,2.83319235]
[1718366387316,0.44531561,3515.4,3514.8,0.698]
[1718366387489,0.44531561,3515.4,3514.9,0.02814742]
[1718366388518,0.44531561,3515.4,3514.7,2.80481]
[1718366388817,0.44531561,3515.4,3514.8,0.02821398]
[1718366391522,0.44531561,3515.4,3514.8,0.38131638]
[1718366394332,0.44531561,3515.4,3514.8,0.02821398]
[1718366395518,0.44531561,3515.4,3515.1,3.1026]
[1718366395832,9.7326,3516.2,3515.3,0.698]
[1718366396033,3.89604514,3516.2,3515.3,0.698]
[1718366398437,0.44522947,3516.4,3515.3,0.75489007]
[1718366398748,0.44522947,3516.4,3515.7,0.698]
[1718366398948,3.53757,3516.5,3515.7,0.698]
[1718366399139,3.83264514,3516.5,3515.8,0.02908013]
[1718366401837,1.43344514,3516.5,3515.8,0.02908013]
[1718366402072,2.92526565,3516.8,3515.8,0.02908013]
[1718366402233,6.4509717,3516.7,3515.8,0.02908013]
[1718366405831,5.7529717,3516.7,3515.9,3.1198]
[1718366408048,4.43344514,3516.7,3515.9,3.1198]
[1718366408886,0.44516565,3516.8,3516.2,2.3504]
[1718366409045,2.3653,3517.3,3516.4,0.698]
[1718366409241,1.01270787,3517.2,3516.4,0.698]
[1718366409466,2.3653,3517.3,3516.4,0.698]
[1718366410038,5.3653,3517.3,3516.4,0.698]
[1718366411181,3.0,3517.3,3516.4,0.698]
[1718366411365,4.43344514,3517.4,3516.6,0.698]
[1718366411572,0.44510525,3517.5,3516.7,0.32413703]
[1718366412874,3.0491,3517.6,3516.7,0.32413703]
[1718366413080,4.48254514,3517.6,3516.7,0.32413703]
[1718366414190,0.698,3517.4,3516.5,2.4865]
[1718366417368,2.13144514,3517.5,3516.5,3.1845]
[1718366417567,2.13144514,3517.5,3516.6,0.03037706]
[1718366417768,2.13144514,3517.5,3516.6,0.35186477]
[1718366418219,2.13144514,3517.5,3516.7,2.4882]
[1718366418565,0.44504375,3517.8,3516.8,0.03242798]
[1718366418881,0.44504375,3517.8,3516.9,3.0862]
[1718366419210,3.0,3517.9,3517.1,0.698]
[1718366419365,3.0,3518.1,3517.2,2.4450575]
[1718366419703,0.698,3517.8,3517.2,2.4450575]
[1718366420710,3.95317,3518.1,3517.2,2.4450575]
[1718366420863,0.698,3517.9,3517.2,2.4450575]
[1718366421204,3.95317,3518.1,3517.2,2.4450575]
[1718366421205,0.698,3518.0,3517.2,2.4450575]
[1718366422818,3.0,3518.1,3517.2,2.2641]
[1718366423149,0.44500939,3518.2,3517.4,2.3267]
[1718366423538,0.698,3518.1,3517.4,2.3267]
[1718366423710,0.698,3518.1,3517.5,0.04180274]
[1718366424812,1.43344514,3518.1,3517.5,0.04180274]
[1718366425017,0.698,3517.6,3517.5,0.04180274]
[1718366425443,0.698,3517.6,3517.0,2.3148]
[1718366425644,2.3257,3517.9,3517.5,0.04184509]
[1718366425851,0.698,3517.6,3517.0,2.3148]
[1718366426058,0.698,3517.4,3517.0,2.3148]
[1718366426223,0.698,3517.4,3517.1,0.03805939]
[1718366426772,0.698,3517.4,3517.0,2.3148]
[1718366427261,0.41350597,3517.7,3517.1,0.04228821]
[1718366427440,0.698,3517.4,3517.1,0.04228821]
[1718366427626,0.698,3517.4,3517.0,2.3148]
[1718366428147,1.94025965,3517.9,3517.1,0.04228821]
[1718366428459,0.698,3517.5,3517.0,2.3148]
[1718366428826,0.698,3517.5,3517.1,0.04228821]
[1718366429559,0.698,3517.5,3517.0,2.3148]
[1718366429721,0.698,3517.5,3517.1,0.04757423]
[1718366429921,0.698,3517.5,3517.0,2.3148]
[1718366430123,0.698,3517.5,3517.1,0.04757423]
[1718366430350,0.698,3517.5,3517.0,2.3148]
[1718366430564,0.698,3517.5,3517.1,0.04745242]
[1718366430758,0.698,3517.5,3517.0,2.3148]
[1718366430938,0.698,3517.5,3517.1,0.04745242]
[1718366431140,0.698,3517.5,3517.0,2.3148]
[1718366431362,0.698,3517.5,3517.1,0.04745242]
[1718366431751,0.698,3517.5,3517.0,2.3148]
[1718366431927,0.698,3517.5,3517.1,0.04217993]
[1718366432129,0.698,3517.2,3516.7,2.3323]
[1718366432325,0.698,3517.2,3516.8,0.04251233]
[1718366432326,0.698,3516.9,3516.8,0.04251233]
[1718366432580,0.698,3516.9,3516.1,2.4101]
[1718366432868,0.698,3517.1,3516.1,2.4101]
[1718366433066,0.698,3517.1,3516.2,0.3539873]
[1718366436834,3.71514514,3517.0,3516.0,0.698]
[1718366437033,3.0,3516.9,3516.3,0.04306646]
[1718366437280,0.698,3516.4,3515.3,2.3445]
[1718366437613,1.43344514,3516.8,3515.4,0.05356999]
[1718366437614,0.698,3516.1,3515.4,0.05356999]
[1718366445105,1.43344514,3516.8,3515.4,0.05356999]
[1718366445286,0.698,3516.0,3515.4,0.05356999]
[1718366445467,3.0,3516.7,3515.4,0.05356999]
[1718366445675,0.698,3516.1,3515.5,0.239807]
[1718366446075,0.698,3516.1,3515.6,0.03826541]
[1718366447093,0.698,3516.1,3515.5,0.239807]
[1718366447296,0.698,3516.1,3515.7,0.03814019]
[1718366447498,0.698,3516.1,3515.6,0.03823998]
[1718366447798,0.698,3516.1,3515.7,0.03814019]
[1718366448161,0.698,3516.1,3515.5,0.239807]
[1718366448359,0.698,3516.1,3515.6,0.03823998]
[1718366451318,0.698,3515.7,3515.6,0.03823998]
[1718366451813,0.698,3515.7,3515.3,2.3445]
[1718366452007,0.698,3515.7,3515.3,2.57895]
[1718366452318,0.698,3515.7,3515.4,0.03847773]
[1718366455466,0.698,3515.9,3515.4,0.03847773]
[1718366461923,0.698,3515.7,3515.4,0.03847773]
[1718366462285,0.698,3515.7,3515.1,2.4959]
[1718366462485,0.698,3515.7,3515.1,2.74549]
[1718366462690,0.698,3515.7,3515.2,0.03874517]
[1718366464146,2.325,3516.0,3515.2,0.03874517]
[1718366464512,0.698,3515.7,3515.2,0.03874517]
[1718366469529,0.698,3515.7,3515.2,0.03874517]
[1718366471805,0.698,3515.5,3515.2,0.03874517]
[1718366472141,0.698,3515.5,3515.2,0.31716869]
[1718366473534,0.698,3515.7,3515.2,0.31716869]
[1718366476545,0.698,3515.6,3515.2,0.31716869]
[1718366482825,0.698,3515.6,3515.2,0.03874517]
[1718366483024,0.698,3515.3,3515.2,0.03874517]
[1718366483739,0.698,3515.3,3514.8,2.4774]
[1718366483925,2.3285,3515.6,3515.2,0.03540016]
[1718366484125,2.3285,3515.6,3514.8,2.4774]
[1718366484126,0.698,3515.3,3514.8,2.4774]
[1718366484358,0.698,3515.1,3514.8,2.4774]
[1718366486362,0.698,3514.9,3514.5,2.3739]
[1718366486569,0.698,3514.7,3514.5,2.3739]
[1718366486742,0.698,3514.7,3514.4,0.3]
[1718366487957,2.4159,3515.1,3514.4,0.3]